bitfinex/quotes_ETHUSD_20251015
["timestamp","ask_amount","ask_price","bid_price","bid_amount"]
[1760571100890,0.104,3992.3,3992.0,0.32506916]
[1760571101263,2.50494727,3992.1,3992.0,0.32506916]
[1760571101459,4.97054727,3992.1,3992.0,0.32506916]
[1760571102002,1.728,3992.1,3992.0,0.32506916]
[1760571102210,2.15128871,3992.1,3992.0,0.32506916]
[1760571102499,0.104,3992.1,3992.0,0.32506916]
[1760571103373,4.33694727,3992.1,3992.0,0.32506916]
[1760571103792,4.97054727,3992.1,3992.0,0.32506916]
[1760571104173,4.97154727,3992.1,3992.0,0.32506916]
[1760571104369,5.71918484,3992.1,3992.0,0.32506916]
[1760571104891,2.47663757,3992.1,3992.0,0.32506916]
[1760571105094,4.97154727,3992.1,3992.0,0.32506916]
[1760571106168,3.13886104,3991.6,3991.5,0.002]
[1760571106395,4.86686104,3991.6,3991.5,0.002]
[1760571106612,4.97126104,3991.6,3991.5,0.002]
[1760571107593,1.728,3991.6,3991.5,0.002]
[1760571107801,4.23326104,3991.6,3991.5,0.002]
[1760571108001,0.68882124,3991.6,3991.5,0.002]
[1760571108208,2.50526104,3991.6,3991.5,0.002]
[1760571108366,0.1493,3991.9,3991.5,0.002]
[1760571108695,0.001,3992.1,3991.5,0.4389]
[1760571108996,2.50513882,3991.8,3991.5,0.002]
[1760571109198,0.1547,3991.6,3991.5,0.002]
[1760571109400,2.65996104,3991.6,3991.5,0.002]
[1760571109603,3.28603264,3991.6,3991.5,0.002]
[1760571110270,5.01403264,3991.6,3991.5,0.002]
[1760571110799,3.03173264,3991.6,3991.5,0.002]
[1760571111024,2.50521758,3991.7,3991.5,0.002]
[1760571111205,2.50526104,3991.6,3991.5,0.002]
[1760571111498,2.50521381,3991.7,3991.5,0.002]
[1760571111719,0.42332138,3991.7,3991.5,0.002]
[1760571111918,2.5051649,3991.8,3991.5,0.002]
[1760571112470,0.001,3992.1,3991.5,0.002]
[1760571112776,0.001,3992.1,3991.5,0.4526]
[1760571112988,0.001,3992.1,3992.0,2.50501002]
[1760571113191,0.001,3992.1,3992.0,2.75551102]
[1760571113371,0.001,3992.1,3992.0,3.20611102]
[1760571116403,0.001,3992.1,3992.0,0.4506]
[1760571116768,0.001,3992.1,3992.0,2.95561002]
[1760571119600,0.001,3992.1,3992.0,0.4506]
[1760571119804,0.001,3992.1,3991.6,2.50526104]
[1760571119805,0.1248,3992.0,3991.6,2.50526104]
[1760571119998,0.001,3992.1,3991.8,2.50507884]
[1760571120215,0.001,3992.1,3991.7,0.4434]
[1760571120414,0.1248,3991.8,3991.5,0.002]
[1760571120637,2.65982778,3991.9,3991.5,0.002]
[1760571120809,0.0996,3991.7,3991.5,0.002]
[1760571121008,2.50514055,3991.8,3991.5,0.002]
[1760571121235,1.97858952,3992.0,3991.5,0.4454]
[1760571121236,0.25058952,3992.0,3991.5,0.4454]
[1760571121455,0.001,3992.1,3991.5,0.4454]
[1760571121731,4.23395474,3992.1,3991.5,0.4454]
[1760571121947,1.729,3992.1,3991.5,0.002]
[1760571122095,1.729,3992.1,3991.5,2.50731559]
[1760571122096,0.001,3992.1,3991.5,2.50731559]
[1760571122299,0.001,3992.1,3991.6,2.50525879]
[1760571122521,0.1248,3991.6,3991.5,2.5073207]
[1760571123228,0.1248,3991.6,3991.5,2.9507207]
[1760571123599,0.1248,3991.6,3991.5,0.002]
[1760571124447,2.73066104,3991.6,3991.5,0.002]
[1760571124737,3.65268714,3991.6,3991.5,0.002]
[1760571125038,5.38068714,3991.6,3991.5,0.002]
[1760571131833,5.33068714,3991.6,3991.5,0.002]
[1760571132442,5.23008714,3991.6,3991.5,0.002]
[1760571133548,2.3616,3991.6,3991.5,0.002]
[1760571133761,4.86686104,3991.6,3991.5,0.002]
[1760571134122,2.3616,3991.6,3991.5,0.002]
[1760571134318,4.86686104,3991.6,3991.5,0.002]
[1760571134523,1.728,3991.6,3991.5,0.002]
[1760571134719,4.23326104,3991.6,3991.5,0.002]
[1760571134935,4.90709461,3991.6,3991.5,0.002]
[1760571135137,2.40183357,3991.6,3991.5,0.002]
[1760571135559,4.90709461,3991.6,3991.5,0.002]
[1760571136459,5.54069461,3991.6,3991.5,0.002]
[1760571136648,5.64189461,3991.6,3991.5,0.002]
[1760571136854,5.54069461,3991.6,3991.5,0.002]
[1760571137233,4.23326104,3991.6,3991.5,0.002]
[1760571137762,0.001,3992.1,3991.5,0.4454]
[1760571137951,0.001,3992.1,3991.8,2.50511269]
[1760571138149,0.001,3992.1,3991.6,0.02505261]
[1760571138467,0.1248,3991.6,3991.5,0.4454]
[1760571139036,0.1248,3991.6,3991.5,2.95072381]
[1760571140470,0.1248,3991.6,3991.5,3.49634108]
[1760571143138,0.1248,3991.6,3991.5,0.54761727]
[1760571143371,0.1248,3991.6,3991.5,0.002]
[1760571144577,0.1248,3991.6,3991.5,2.96802381]
[1760571145074,0.1248,3991.6,3991.5,0.002]
[1760571145654,0.1248,3991.6,3991.5,2.96802381]
[1760571146035,0.1248,3991.6,3991.5,0.002]
[1760571147144,0.1248,3991.6,3991.5,2.96802381]
[1760571148057,0.1248,3991.6,3991.5,3.51537028]
[1760571148441,0.1248,3991.6,3991.5,0.002]
[1760571149690,2.72966104,3991.6,3991.5,0.002]
[1760571150560,5.09126104,3991.6,3991.5,0.002]
[1760571152483,5.09126104,3991.6,3990.4,0.002]
[1760571152484,3.13955163,3990.5,3990.4,0.002]
[1760571152806,15.26439262,3990.5,3990.4,0.0005]
[1760571152991,6.40200978,3990.5,3990.4,0.0005]
[1760571153193,5.61880261,3990.5,3990.4,0.0005]
[1760571153394,5.71740261,3990.5,3990.4,0.0005]
[1760571153619,5.61880261,3990.5,3990.4,0.0005]
[1760571153784,5.18150679,3990.5,3990.4,0.0005]
[1760571157499,14.57127907,3990.5,3990.4,0.0005]
[1760571157697,5.59080261,3990.5,3990.4,0.0005]
[1760571157932,5.18150679,3990.5,3990.4,0.0005]
[1760571159826,5.28010679,3990.5,3990.4,0.0005]
[1760571160124,5.18150679,3990.5,3990.4,0.0005]
[1760571162340,4.54790679,3990.5,3990.4,0.0005]
[1760571162540,4.23395163,3990.5,3990.4,0.4612]
[1760571163517,2.50583567,3990.7,3990.4,0.4612]
[1760571163770,1.728,3990.6,3990.4,0.4612]
[1760571163972,2.50595163,3990.5,3990.4,0.4612]
[1760571164675,3.81353054,3990.5,3990.4,0.0005]
[1760571164847,3.17993054,3990.5,3990.4,0.0005]
[1760571166265,2.50593729,3990.6,3990.4,0.0005]
[1760571166576,5.11655163,3990.5,3990.4,0.0005]
[1760571166743,5.52584745,3990.5,3990.4,0.0005]
[1760571168688,4.86755163,3990.5,3990.4,0.0005]
[1760571170085,4.23395163,3990.5,3990.4,0.0005]
[1760571170584,4.90794052,3990.5,3990.4,0.0005]
[1760571171491,1.728,3990.5,3990.4,0.4336]
[1760571172378,4.23395163,3990.5,3990.4,0.4336]
[1760571173801,1.728,3990.5,3990.4,0.4336]
[1760571174001,4.23395163,3990.5,3990.4,0.4336]
[1760571174298,4.23495163,3990.5,3990.4,0.4336]
[1760571174901,1.729,3990.5,3990.4,0.4336]
[1760571175671,0.001,3990.5,3990.4,0.4336]
[1760571175993,0.001,3990.5,3990.4,3.25508939]
[1760571180421,0.001,3990.5,3990.4,0.0005]
[1760571180907,2.50695163,3990.5,3990.4,0.0005]
[1760571181281,4.86855163,3990.5,3990.4,0.0005]
[1760571181610,4.96805163,3990.5,3990.4,0.0005]
[1760571181909,4.86855163,3990.5,3990.4,0.0005]
[1760571182084,5.61594077,3990.5,3990.4,0.0005]
[1760571182609,5.71544077,3990.5,3990.4,0.0005]
[1760571183509,5.61594077,3990.5,3990.4,0.0005]
[1760571183706,3.10998914,3990.5,3990.4,0.0005]
[1760571183877,1.729,3990.5,3990.4,0.0005]
[1760571184780,4.23495163,3990.5,3990.4,0.0005]
[1760571184985,1.729,3990.5,3990.4,0.0005]
[1760571186113,1.729,3990.5,3990.4,0.4364]
[1760571186407,0.001,3990.5,3990.4,0.4364]
[1760571186805,0.001,3990.5,3990.4,2.94241443]
[1760571187211,0.001,3990.5,3990.4,0.0005]
[1760571188299,0.001,3990.5,3990.4,3.36037321]
[1760571189603,0.001,3990.5,3990.4,7.26343335]
[1760571189779,0.1258,3990.5,3990.4,7.23837321]
[1760571192179,0.1258,3990.5,3990.4,3.36037321]
[1760571192899,0.1258,3990.5,3990.4,2.94241443]
[1760571197559,0.1258,3990.5,3990.4,0.0005]
[1760571198841,0.001,3990.5,3990.4,2.96747457]
[1760571198998,0.001,3990.5,3990.4,2.94241443]
[1760571199198,0.001,3990.5,3990.4,2.96747457]
[1760571199711,0.001,3990.5,3990.4,3.5373359]
[1760571199907,0.001,3990.5,3990.4,3.51227576]
[1760571204545,0.001,3990.5,3990.4,5.2653359]
[1760571204748,0.001,3990.5,3990.4,9.11827576]
[1760571205542,0.001,3990.5,3990.4,4.23451443]
[1760571205716,0.001,3990.5,3990.4,0.0005]
[1760571206109,0.001,3990.5,3990.4,2.50651443]
[1760571206344,0.001,3990.5,3990.4,0.0005]
[1760571206546,0.1005,3990.5,3990.4,0.0005]
[1760571207140,0.001,3990.5,3990.4,0.0005]
[1760571208058,0.1005,3990.5,3990.4,0.0005]
[1760571209110,0.26164287,3990.5,3990.4,0.0005]
[1760571209435,0.001,3990.5,3990.4,0.0005]
[1760571209823,0.001,3990.5,3990.4,2.50651443]
[1760571210628,0.001,3990.5,3990.4,0.0005]
[1760571211354,0.001,3990.5,3990.4,2.53157457]
[1760571211554,0.001,3990.5,3990.4,2.50651443]
[1760571211766,0.001,3990.5,3990.4,3.52055563]
[1760571212117,0.001,3990.5,3990.4,0.5705412]
[1760571212347,0.001,3990.5,3990.4,2.50651443]
[1760571212731,0.001,3990.5,3990.4,0.0005]
[1760571213117,2.60755163,3990.5,3990.4,0.0005]
[1760571214137,0.001,3990.5,3990.4,0.0005]
[1760571214341,0.1016,3990.5,3990.4,0.0005]
[1760571214543,0.62541091,3990.5,3990.4,0.0005]
[1760571215262,0.52481091,3990.5,3990.4,0.0005]
[1760571216146,0.001,3990.5,3990.4,0.0005]
[1760571218273,0.001,3990.5,3990.4,0.4445]
[1760571218642,0.001,3990.5,3990.4,0.0005]
[1760571220164,0.1016,3990.5,3990.4,0.0005]
[1760571220370,2.60755163,3990.5,3990.4,0.0005]
[1760571220532,3.11888955,3990.5,3990.4,0.0005]
[1760571220735,2.60755163,3990.5,3990.4,0.0005]
[1760571221466,0.001,3990.5,3990.4,0.0005]
[1760571224958,0.001,3990.5,3990.4,0.4445]
[1760571225155,0.001,3990.5,3990.4,2.50651443]
[1760571225462,0.001,3990.5,3990.4,2.95051443]
[1760571227288,0.001,3990.5,3990.4,0.0005]
[1760571235602,2.86928489,3990.5,3990.4,0.0005]
[1760571235771,0.1025,3990.5,3990.4,0.0005]
[1760571235973,2.60845163,3990.5,3990.4,0.0005]
[1760571237510,0.1025,3990.5,3990.4,0.0005]
[1760571237714,0.001,3990.5,3990.4,0.0005]
[1760571237880,0.001,3990.5,3990.4,0.458]
[1760571238082,0.001,3990.5,3990.4,0.0005]
[1760571239596,2.50695163,3990.5,3990.4,0.0005]
[1760571239793,3.00823036,3990.5,3990.4,0.0005]
[1760571240113,3.10973036,3990.5,3990.4,0.0005]
[1760571241485,3.00823036,3990.5,3990.4,0.0005]
[1760571242097,3.10973036,3990.5,3990.4,0.0005]
[1760571242808,3.00823036,3990.5,3990.4,0.0005]
[1760571243506,3.10973036,3990.5,3990.4,0.0005]
[1760571244910,3.00823036,3990.5,3990.4,0.0005]
[1760571245698,0.50227873,3990.5,3990.4,0.0005]
[1760571245904,0.001,3990.5,3990.4,0.0005]
[1760571246132,2.50695163,3990.5,3990.4,0.0005]
[1760571247626,0.001,3990.5,3990.4,0.0005]
[1760571248140,2.50695163,3990.5,3990.4,0.0005]
[1760571249800,4.97005163,3990.5,3990.4,0.0005]
[1760571250019,5.71763954,3990.5,3990.4,0.0005]
[1760571253547,2.47658791,3990.5,3990.4,0.0005]
[1760571253701,1.729,3990.5,3990.4,0.458]
[1760571254061,4.23495163,3990.5,3990.4,0.458]
[1760571254236,1.729,3990.5,3990.4,0.458]
[1760571254731,4.23495163,3990.5,3990.4,0.458]
[1760571254903,4.90903258,3990.5,3990.4,0.458]
[1760571255233,4.90903258,3990.5,3990.4,0.0005]
[1760571258255,5.64413258,3990.5,3990.4,0.0005]
[1760571259159,3.91613258,3990.5,3990.4,0.0005]
[1760571259737,3.81463258,3990.5,3990.4,0.0005]
[1760571260046,5.54263258,3990.5,3990.4,0.0005]
[1760571261025,4.90903258,3990.5,3990.4,0.0005]
[1760571261761,4.90903258,3990.5,3990.4,0.4419]
[1760571262055,4.90903258,3990.5,3990.4,0.0005]
[1760571275452,0.001,3990.5,3990.4,0.0005]
[1760571275778,0.001,3990.5,3990.4,0.4419]
[1760571276169,0.001,3990.5,3990.4,0.0005]
[1760571277081,0.001,3990.5,3990.4,0.4419]
[1760571280595,0.001,3990.5,3990.4,0.0005]
[1760571280898,2.50695163,3990.5,3990.4,0.0005]
[1760571281254,0.001,3990.5,3990.4,0.0005]
[1760571282090,2.50695163,3990.5,3990.4,0.0005]
[1760571282595,3.18102954,3990.5,3990.4,0.0005]
[1760571282802,5.64212954,3990.5,3990.4,0.0005]
[1760571284403,5.54262954,3990.5,3990.4,0.0005]
[1760571285206,5.64212954,3990.5,3990.4,0.0005]
[1760571288489,5.54262954,3990.5,3990.4,0.0005]
[1760571289307,1.729,3990.5,3990.4,0.4419]
[1760571289612,4.23495163,3990.5,3990.4,0.4419]
[1760571289905,1.729,3990.5,3990.4,0.4419]
[1760571290266,4.23495163,3990.5,3990.4,0.4419]
[1760571290806,1.729,3990.5,3990.4,0.4419]
[1760571292077,1.729,3990.5,3990.4,0.0005]
[1760571292281,1.729,3990.5,3990.4,0.4307]
[1760571293798,4.23495163,3990.5,3990.4,0.4307]
[1760571294200,1.729,3990.5,3990.4,0.4307]
[1760571296090,1.729,3990.5,3990.4,0.0005]
[1760571296319,4.23495163,3990.5,3990.4,0.0005]
[1760571296485,1.729,3990.5,3990.4,0.0005]
[1760571297004,4.23495163,3990.5,3990.4,0.0005]
[1760571297210,5.64322331,3990.5,3990.4,0.0005]
[1760571300326,9.44652516,3990.5,3990.4,0.0005]
[1760571300531,9.78543948,3990.5,3990.4,0.0005]
[1760571300704,3.13980285,3990.1,3990.0,0.002]
[1760571300902,8.6711047,3990.1,3990.0,0.002]
[1760571301106,6.22635043,3990.1,3990.0,0.002]
[1760571302022,3.08654758,3990.1,3990.0,0.4395]
[1760571302192,1.728,3990.1,3990.0,0.4395]
[1760571302714,0.001,3990.5,3990.2,2.506137]
[1760571302903,0.001,3990.5,3990.4,0.2271]
[1760571303335,0.001,3990.5,3990.0,0.002]
[1760571303336,2.50695163,3990.5,3990.0,0.002]
[1760571303635,0.25169516,3990.5,3990.0,0.002]
[1760571303819,0.001,3990.5,3990.1,0.4375]
[1760571304140,0.6336,3990.4,3990.2,0.4375]
[1760571304737,0.001,3990.5,3990.3,0.4375]
[1760571304938,0.001,3990.5,3990.4,0.4375]
[1760571305236,0.001,3990.5,3990.1,0.2271]
[1760571305439,0.001,3990.5,3990.2,0.4375]
[1760571305744,0.1248,3990.1,3990.0,0.002]
[1760571307048,4.86780285,3990.1,3990.0,0.002]
[1760571307260,6.30945222,3990.2,3990.0,0.002]
[1760571307261,0.6336,3990.2,3990.0,0.002]
[1760571307408,2.50620285,3990.1,3990.0,0.002]
[1760571307609,3.13980285,3990.1,3990.0,0.002]
[1760571307920,2.46538885,3990.1,3990.0,0.4395]
[1760571308121,0.001,3990.5,3990.0,0.4395]
[1760571308122,2.50605857,3990.4,3990.0,0.4395]
[1760571308448,1.728,3990.3,3990.1,0.6646]
[1760571308749,2.50608155,3990.3,3990.1,0.6646]
[1760571309624,2.50614004,3990.2,3990.0,0.002]
[1760571309827,3.13980285,3990.1,3990.0,0.002]
[1760571310017,4.86780285,3990.1,3990.0,0.002]
[1760571311273,1.728,3990.1,3990.0,0.002]
[1760571311476,1.728,3990.1,3990.0,0.4395]
[1760571311847,1.728,3990.1,3990.0,0.002]
[1760571312365,1.728,3990.1,3990.0,0.4395]
[1760571312543,0.001,3990.5,3990.0,0.4395]
[1760571312861,0.001,3990.5,3990.1,0.6646]
[1760571312862,2.3626,3990.5,3990.1,0.6646]
[1760571313068,0.001,3990.5,3990.2,0.4375]
[1760571313464,0.001,3990.5,3990.4,2.50601443]
[1760571313961,0.001,3990.5,3990.4,2.94351443]
[1760571322294,0.001,3990.5,3990.4,2.96857457]
[1760571322899,0.001,3990.5,3990.4,2.94351443]
[1760571323101,0.001,3990.5,3990.4,3.91657912]
[1760571323411,0.001,3990.5,3990.4,3.89151898]
[1760571323713,0.001,3990.5,3990.4,3.91657912]
[1760571326226,0.001,3990.5,3990.4,4.01631898]
[1760571326390,0.001,3991.3,3991.2,2.50551212]
[1760571326721,0.001,3991.3,3991.2,6.30881397]
[1760571327098,0.001,3991.3,3991.2,6.85329806]
[1760571333628,0.001,3991.3,3991.2,9.38042905]
[1760571335098,0.001,3991.3,3991.2,5.77111263]
[1760571335296,0.001,3991.3,3991.2,6.66486283]
[1760571336029,0.001,3991.3,3991.2,3.49964641]
[1760571336228,0.001,3991.3,3991.2,2.50551212]
[1760571336533,0.1258,3991.3,3991.2,2.50551212]
[1760571339851,0.1258,3991.3,3990.5,2.5059035]
[1760571339852,2.73030754,3991.3,3990.5,2.5059035]
[1760571340132,0.152,3990.6,3990.0,0.002]
[1760571340518,0.0995,3990.5,3990.4,0.002]
[1760571340692,2.60545163,3990.5,3990.4,0.002]
[1760571340898,4.96705163,3990.5,3990.4,0.002]
[1760571341131,8.13226805,3990.5,3990.4,0.002]
[1760571341331,9.37259113,3990.5,3990.4,0.002]
[1760571341731,6.07995703,3990.5,3990.4,0.002]
[1760571341897,1.8275,3990.5,3990.4,0.002]
[1760571342231,2.4611,3990.5,3990.4,0.002]
[1760571342437,4.96705163,3990.5,3990.4,0.002]
[1760571343434,2.4611,3990.5,3990.4,0.002]
[1760571343593,1.8275,3990.5,3990.4,0.002]
[1760571344031,0.0995,3990.5,3990.4,0.002]
[1760571344428,0.152,3990.6,3990.4,0.002]
[1760571344629,0.0995,3990.5,3990.4,0.002]
[1760571346798,0.152,3990.6,3990.4,0.002]
[1760571347003,1.978,3991.2,3990.6,2.50587969]
[1760571347305,2.67698197,3991.2,3990.6,2.50587969]
[1760571348210,5.18250065,3991.2,3990.5,2.50594839]
[1760571348411,0.6336,3991.0,3990.4,0.002]
[1760571348617,2.50586566,3990.7,3990.4,0.002]
[1760571348844,0.25058657,3990.6,3990.4,0.002]
[1760571349019,3.0064875,3990.6,3990.4,0.002]
[1760571349335,0.25,3990.5,3990.4,0.002]
[1760571349553,3.38955163,3990.5,3990.4,0.002]
[1760571350423,5.11755163,3990.5,3990.4,0.002]
[1760571350732,5.90495183,3990.5,3990.4,0.002]
[1760571354047,2.5154002,3990.5,3990.4,0.002]
[1760571354215,1.728,3990.5,3990.4,0.002]
[1760571356451,0.6336,3990.8,3990.4,0.002]
[1760571357346,2.3616,3990.8,3990.4,0.002]
[1760571357852,0.6336,3990.8,3990.4,0.002]
[1760571358632,3.13936744,3990.8,3990.4,0.002]
[1760571358949,2.48045091,3990.7,3990.4,0.002]
[1760571359134,0.75245091,3990.7,3990.4,0.002]
[1760571359371,0.001,3991.1,3990.5,0.4609]
[1760571359674,0.001,3991.1,3990.5,2.9668305]
[1760571359847,0.001,3991.1,3990.5,2.96682922]
[1760571360452,0.001,3991.1,3990.6,2.50588279]
[1760571360637,2.50658825,3991.1,3990.5,2.96684187]
[1760571360842,1.728,3991.0,3990.5,0.4609]
[1760571361334,1.728,3991.0,3990.5,2.96684825]
[1760571361540,1.728,3991.0,3990.6,0.4609]
[1760571362336,1.728,3991.0,3990.6,2.9667874]
[1760571362742,1.728,3991.0,3990.6,0.4609]
[1760571363179,0.25,3990.9,3990.4,0.002]
[1760571363340,2.50595163,3990.5,3990.4,0.002]
[1760571363885,2.60495163,3990.5,3990.4,0.002]
[1760571364384,3.23855163,3990.5,3990.4,0.002]
[1760571364538,3.82825338,3990.5,3990.4,0.002]
[1760571365445,5.55625338,3990.5,3990.4,0.002]
[1760571366876,2.31770175,3990.5,3990.4,0.002]
[1760571367076,4.23395163,3990.5,3990.4,0.002]
[1760571369188,4.96705163,3990.5,3990.4,0.002]
[1760571369389,4.86755163,3990.5,3990.4,0.002]
[1760571370514,2.3616,3990.5,3990.4,0.002]
[1760571370680,1.728,3990.5,3990.4,0.002]
[1760571371017,4.23395163,3990.5,3990.4,0.002]
[1760571373215,5.65097997,3990.5,3990.4,0.002]
[1760571373418,5.55147997,3990.5,3990.4,0.002]
[1760571374113,4.23395163,3990.5,3990.4,0.002]
[1760571375707,4.96705163,3990.5,3990.4,0.002]
[1760571377017,3.23905163,3990.5,3990.4,0.002]
[1760571378437,4.96705163,3990.5,3990.4,0.002]
[1760571378727,4.96705163,3990.5,3989.6,0.002]
[1760571378728,4.86805411,3989.7,3989.6,0.002]
[1760571379188,4.96755411,3989.7,3989.6,0.002]
[1760571379389,4.86830543,3989.3,3989.2,1e-08]
[1760571379588,44.82196702,3989.3,3989.2,1e-08]
[1760571379923,45.51767173,3989.3,3989.2,1e-08]
[1760571381918,6.56542446,3989.3,3989.2,1e-08]
[1760571382126,5.59291014,3989.3,3989.2,1e-08]
[1760571382423,4.23470543,3989.3,3989.2,1e-08]
[1760571382725,16.64180543,3989.3,3989.2,1e-08]
[1760571383806,7.40880543,3989.3,3989.2,1e-08]
[1760571384100,4.96780543,3989.3,3989.2,1e-08]
[1760571384828,4.86830543,3989.3,3989.2,1e-08]
[1760571385132,6.57722315,3989.3,3989.2,1e-08]
[1760571385505,1.70891772,3989.3,3989.2,1e-08]
[1760571385719,9.61474727,3990.2,3989.2,0.43950001]
[1760571385925,2.50670543,3989.3,3989.2,1e-08]
[1760571386300,3.14030543,3989.3,3989.2,1e-08]
[1760571386513,3.87779848,3989.3,3989.2,1e-08]
[1760571386832,3.97729848,3989.3,3989.2,1e-08]
[1760571387013,3.87779848,3989.3,3989.2,1e-08]
[1760571388218,3.97729848,3989.3,3989.2,1e-08]
[1760571389834,5.60579848,3989.3,3989.2,1e-08]
[1760571393009,5.60679848,3989.3,3989.2,1e-08]
[1760571393820,5.70629848,3989.3,3989.2,1e-08]
[1760571394254,5.60679848,3989.3,3989.2,1e-08]
[1760571396730,5.70629848,3989.3,3989.2,1e-08]
[1760571396926,5.60679848,3989.3,3989.2,1e-08]
[1760571407368,6.04763218,3989.3,3989.2,1e-08]
[1760571407572,6.34746316,3989.3,3989.2,1e-08]
[1760571408976,36.34746316,3989.3,3989.2,1e-08]
[1760571409154,3.1405568,3988.9,3988.8,1e-08]
[1760571409358,18.7458568,3988.9,3988.8,1e-08]
[1760571409557,19.48752148,3988.9,3988.8,1e-08]
[1760571411683,21.21552148,3988.9,3988.8,1e-08]
[1760571413152,4.2349568,3988.9,3988.8,1e-08]
[1760571413357,4.2349568,3988.9,3988.8,0.45810001]
[1760571413664,5.54274043,3988.9,3988.8,0.45810001]
[1760571413864,4.90914043,3988.9,3988.8,0.45810001]
[1760571414168,5.54274043,3988.9,3988.8,0.45810001]
[1760571414369,4.90914043,3988.9,3988.8,0.45810001]
[1760571414874,5.54274043,3988.9,3988.8,0.45810001]
[1760571415381,2.5069568,3988.9,3988.8,0.45810001]
[1760571415759,3.1405568,3988.9,3988.8,0.45810001]
[1760571419609,2.5069568,3988.9,3988.8,0.45810001]
[1760571420183,2.5069568,3988.9,3988.8,1e-08]
[1760571420401,3.1405568,3988.9,3988.8,1e-08]
[1760571420581,3.87810043,3988.9,3988.8,1e-08]
[1760571421706,5.60610043,3988.9,3988.8,1e-08]
[1760571423505,36.34726511,3988.9,3988.8,1e-08]
[1760571424815,15.22126511,3988.9,3988.8,1e-08]
[1760571425113,10.08126511,3988.9,3988.8,1e-08]
[1760571425281,10.18126511,3988.9,3988.8,1e-08]
[1760571428289,10.18226511,3988.9,3988.8,1e-08]
[1760571430317,4.86905969,3988.1,3988.0,0.002]
[1760571431030,4.86905969,3988.1,3986.3,0.002]
[1760571431031,4.87012899,3986.4,3986.3,0.002]
[1760571432623,4.87038073,3986.0,3985.9,0.002]
[1760571433002,5.21353946,3986.0,3985.9,0.002]
[1760571433326,5.96488662,3986.0,3985.9,0.002]
[1760571433541,4.87038073,3986.0,3985.9,0.4754]
[1760571435493,4.87038073,3986.0,3985.9,0.002]
[1760571442065,5.30898073,3986.0,3985.9,0.002]
[1760571443338,4.87038073,3986.0,3985.9,0.002]
[1760571445950,4.87038073,3986.0,3985.9,0.4493]
[1760571445951,1.728,3986.0,3985.9,0.4493]
[1760571446260,0.001,3986.2,3985.9,0.4493]
[1760571446428,0.001,3986.2,3986.1,2.68071779]
[1760571446634,0.001,3986.2,3986.1,3.24460364]
[1760571446857,0.001,3986.2,3986.1,3.69190364]
[1760571448046,0.001,3986.2,3986.1,0.6193]
[1760571448449,0.001,3986.2,3986.1,0.172]
[1760571448647,4.87038073,3986.0,3985.9,0.002]
[1760571449480,5.30898073,3986.0,3985.9,0.002]
[1760571452439,35.30898073,3986.0,3985.9,0.002]
[1760571452665,37.80913699,3986.0,3985.9,0.002]
[1760571455344,47.45170219,3986.0,3985.9,0.002]
[1760571456653,4.87119921,3984.7,3984.6,0.002]
[1760571456967,44.51376441,3984.7,3984.6,0.002]
[1760571457165,44.86388418,3984.7,3984.6,0.002]
[1760571457347,45.30248418,3984.7,3984.6,0.002]
[1760571457982,24.86548418,3984.7,3984.6,0.002]
[1760571459046,23.00588418,3984.7,3984.6,0.002]
[1760571459244,5.22131898,3984.7,3984.6,0.002]
[1760571462295,4.87119921,3984.7,3984.6,0.4493]
[1760571463762,4.87119921,3984.7,3984.6,0.002]
[1760571467996,4.87119921,3984.7,3984.6,0.4493]
[1760571468421,2.50959921,3984.7,3984.6,0.4493]
[1760571468569,0.6336,3985.4,3984.6,0.4493]
[1760571468570,2.50955188,3984.8,3984.6,0.4493]
[1760571468898,2.50955188,3984.8,3984.7,0.4473]
[1760571471293,4.23753623,3984.8,3984.7,0.4473]
[1760571474879,1.728,3984.8,3984.7,0.4473]
[1760571475618,1.728,3984.9,3984.7,0.4473]
[1760571475830,0.2227,3985.9,3984.6,0.002]
[1760571475831,1.728,3985.2,3984.8,0.4624]
[1760571475983,2.50872725,3986.1,3985.1,0.216]
[1760571476183,2.50917574,3985.4,3985.1,0.6784]
[1760571476378,1.728,3985.3,3985.2,0.4624]
[1760571477516,1.728,3985.4,3985.2,0.4624]
[1760571477818,3.38095725,3986.1,3985.2,0.4624]
[1760571477819,0.23863,3986.1,3985.2,0.4624]
[1760571478018,2.50889681,3985.9,3985.2,0.4624]
[1760571478228,2.50871779,3986.1,3985.2,0.4624]
[1760571478229,0.6336,3986.1,3985.2,0.4624]
[1760571478392,2.50898611,3985.7,3985.2,0.4624]
[1760571478592,2.50906119,3985.6,3985.3,0.4624]
[1760571478792,2.50906119,3985.6,3985.1,0.216]
[1760571478793,0.1248,3985.2,3985.1,0.216]
[1760571478992,0.1248,3985.2,3985.1,3.18774731]
[1760571479230,0.1248,3985.2,3985.1,0.6784]
[1760571479511,0.1248,3985.2,3985.1,3.18774731]
[1760571479881,0.1248,3985.2,3985.1,0.6784]
[1760571482935,0.1248,3985.2,3985.1,4.5564]
[1760571483225,0.1248,3985.2,3985.1,3.878]
[1760571483597,0.1248,3985.2,3985.1,4.3404]
[1760571484010,0.1248,3985.2,3985.1,0.4624]
[1760571485127,0.1248,3985.2,3984.7,4.094]
[1760571485428,0.1248,3985.0,3984.7,7.01315926]
[1760571485733,2.50916661,3985.4,3984.7,7.47555926]
[1760571485883,2.50916661,3985.4,3984.7,4.966]
[1760571486089,0.001,3985.5,3984.8,0.4624]
[1760571486301,0.001,3985.5,3984.9,2.50941559]